Cogmind - Beta 14 @@@ ROGUE MODE // 2024.12.14 @ 17:19:08 Player: Tereza Result: Destroyed by as-66932 with Assembled Maul Performance ------------- Evolutions (0) 0 Regions Visited (2) 400 Robots Destroyed (18) 90 Value Destroyed (471) 471 Prototype IDs (1) 20 Alien Tech Used (0) 0 Bonus (0) 0 TOTAL SCORE: 981 Bonus ------- None Cogmind --------- Core Integrity 0/250 Matter 206/300 Energy 100/100 System Corruption 1% Temperature Cool (14) Movement Treading (320) Ox2 Location -10/Mines Parts ------- > --- POWER (1) -------- (None) > --- PROPULSION (2) --- Light Treads > --- UTILITY (2) ------ High-capacity Storage Unit Light Armor Plating > --- WEAPON (2) ------- Light Assault Rifle Grenade Launcher > --- INVENTORY (20) --- Ion Engine Light Treads Light Treads Wheel Compact Wheel Improved Heat Sink Small Storage Unit Sensor Array Sensor Array Sensor Array Seismic Detector Utility Shielding Thief Drone Bay (3/3) Medium Laser Small Laser Small Laser Grenade Launcher Grenade Launcher Grenade Launcher Mining Laser Peak State ------------ > --- POWER ------------ Ion Engine > --- PROPULSION ------- Light Treads Light Treads > --- UTILITY ---------- High-capacity Storage Unit Thief Drone Bay > --- WEAPON ----------- Medium Laser Light Assault Rifle > --- INVENTORY -------- Ion Engine Light Treads Light Treads Wheel Compact Wheel Improved Heat Sink Small Storage Unit Sensor Array Sensor Array Sensor Array Seismic Detector Utility Shielding Light Armor Plating Small Laser Small Laser Grenade Launcher Grenade Launcher Grenade Launcher Grenade Launcher Mining Laser [Rating: 15] Favorites ----------- Power Ion Engine Engine Ion Engine Propulsion Light Treads Treads Light Treads Utility High-capacity Storage Unit Device Improved Heat Sink Storage High-capacity Storage Unit Protection Light Armor Plating Weapon Light Assault Rifle Energy Gun Medium Laser Ballistic Gun Light Assault Rifle Launcher Grenade Launcher Build | -11 -10 -10 ------- Run | Yrd Mat Min Slots Evolved . | . . . Power . | . . . Propulsion . | . . . Utility . | . . . Weapon . | . . . Parts Attached 17 | 6 8 3 Power 2 | 1 1 . Engine 2 | 1 1 . Core . | . . . Reactor . | . . . Propulsion 3 | 2 1 . Treads 3 | 2 1 . Leg . | . . . Wheel . | . . . Hover . | . . . Flight . | . . . Utility 7 | 1 4 2 Device 2 | . 1 1 Storage 3 | 1 2 . Processor . | . . . Hackware . | . . . Protection 2 | . 1 1 Artifact . | . . . Weapon 5 | 2 2 1 Energy Gun 2 | 1 1 . Energy Cannon . | . . . Ballistic Gun 1 | 1 . . Ballistic Cannon . | . . . Launcher 2 | . 1 1 Special Weapon . | . . . Impact Weapon . | . . . Slashing Weapon . | . . . Piercing Weapon . | . . . Special Melee Weapon . | . . . Unidentified Prototypes 1 | . . 1 Parts Lost 5 | . 3 2 Power 2 | . 1 1 Propulsion 2 | . 1 1 Utility 1 | . 1 . Weapon . | . . . Highest Loss Streak 2 | . 2 2 To Critical Strikes . | . . . Average Slot Usage (%) 98 | . 98 99 Engine 13 | . 13 14 Treads 27 | . 27 27 Device 8 | . 7 13 Storage 14 | . 14 14 Protection 4 | . 5 . Energy Gun 13 | . 14 13 Ballistic Gun 14 | . 14 14 Peak Build Rating 15 | 6 11 15 Average Rating 9 | 4 9 10 On Entrance 5 | . 6 10 Naked Turns . | . . . Heaviest Build 91 | 13 91 52 Greatest Support 40 | 40 40 40 Greatest Overweight (x) 2 | 1 2 1 Average Overweight (x) . | . . 1 Largest Inventory Capacity 25 | 8 25 20 Average Capacity 19 | 7 19 20 Most Carried 20 | 7 20 20 Average Carried 16 | 5 16 19 Final Capacity 20 | 8 20 20 Final Carried 20 | 6 19 20 Class Distribution -------------------- 100% | Mutant Dominant Class ---------------- Mutant | -10/Materials Mutant | -10/Mines Resources | -11 -10 -10 ----------- Run | Yrd Mat Min Matter Collected 412 | 260 146 6 Remotely . | . . . Salvage Created 600 | . 553 47 Parts 25 | . 25 . Haulers Intercepted 2 | . 2 . Recyclers Shooed 3 | . 3 . Parts Field Recycled . | . . . Retrieved Matter . | . . . Parts Self-Destructed . | . . . Prevented . | . . . Kills | -11 -10 -10 ------- Run | Yrd Mat Min Combat Hostiles Destroyed 17 | . 12 5 Guns 10 | . 9 1 AOE 7 | . 3 4 Classes Destroyed 6 | . 5 1 Hauler 2 | . 2 . Operator 1 | . 1 . Watcher 2 | . 2 . Swarmer 3 | . 3 . Grunt 10 | . 9 1 Assembled 4 | . . 4 Best Kill Streak 4 | . 3 4 Combat Bots Only 4 | . 3 4 Max Kills in Single Turn 3 | . 3 1 Gunslinging . | . . . Exploded 3 | . 3 1 Melee . | . . . Uniques/NPCs Destroyed . | . . . Combat | -11 -10 -10 -------- Run | Yrd Mat Min Hostile Shots Fired 97 | . 83 14 Missed 28 | . 25 3 Damage Taken 1015 | . 791 224 Core 256 | . 194 62 Absorbed by Shields . | . . . Core Remaining (%) 100 | 100 . . Volleys Fired 77 | . 67 10 Largest 2 | . 2 2 Hottest 70 | . 70 70 Shots Fired 153 | . 133 20 Gun 146 | . 132 14 Cannon . | . . . Launcher 7 | . 1 6 Special . | . . . Kinetic 77 | . 67 10 Thermal 69 | . 65 4 Explosive 7 | . 1 6 Electromagnetic . | . . . Robot Hit Streak 9 | . 9 3 Robot Miss Streak 3 | . 3 2 Penetration Max . | . . . Secondary Targets 2 | . 2 . Max Gunslinging Chain 1 | . 1 . Shots Hit Robots 99 | . 85 14 Core Hits 47 | . 36 11 Critical Kills . | . . . Critical Parts Destroyed . | . . . Critical Strikes 5 | . 5 . Burn 5 | . 5 . Melee Attacks . | . . . Impact . | . . . Slashing . | . . . Piercing . | . . . Sneak Attacks . | . . . Combat Hostiles . | . . . Follow-up Attacks . | . . . Damage Inflicted 1380 | . 1002 378 Guns 990 | . 897 93 Cannons . | . . . Explosions 390 | . 105 285 Melee . | . . . Ramming . | . . . Kinetic 376 | . 333 43 Thermal 614 | . 564 50 Explosive 390 | . 105 285 Electromagnetic . | . . . Impact . | . . . Slashing . | . . . Piercing . | . . . Highest Corruption 1 | . 1 1 Average Corruption 1 | . 1 1 Corruption Purged . | . . . Corruption Blocked . | . . . Effects 3 | . . 3 Message Errors 1 | . . 1 Matter Fused 1 | . . 1 Energy Discharges 1 | . . 1 Overload Shots . | . . . Overflow Damage 11 | . . 11 Projectiles . | . . . Explosions 11 | . . 11 Melee . | . . . Knockbacks . | . . . Impact . | . . . Kinetic . | . . . Secondary . | . . . Self-Inflicted Damage 88 | . . 88 Shots 3 | . . 3 Rammed . | . . . Targets Rammed . | . . . Kicked . | . . . Crushed . | . . . Highest Temperature 307 | . 307 32 Average Temperature 64 | . 70 13 Received Heat Transfer 468 | . 444 24 Siege Activations . | . . . Robots Corrupted . | . . . Combat Hostiles . | . . . Parts Fried . | . . . Impact Corruptions . | . . . Robots Melted . | . . . Combat Hostiles . | . . . Parts Melted 4 | . 4 . Heat Transferred 2183 | . 2035 148 Parts Sabotaged . | . . . Parts Stolen . | . . . Parts Stripped . | . . . Power Chain Reactions . | . . . Alert | -11 -10 -10 ------- Run | Yrd Mat Min Peak Influence 215 | . 215 114 Initial 66 | . . 66 Average 83 | . 90 76 Maximum Alert Level 1 | . 1 . Low Security (%) 97 | 100 97 100 Level 1 2 | . 2 . Level 2 . | . . . Level 3 . | . . . Level 4 . | . . . Level 5 . | . . . High Security . | . . . Max Security . | . . . Squads Dispatched 2 | . 2 . Investigation 2 | . 2 . Extermination . | . . . Reinforcement . | . . . Assault . | . . . Garrison . | . . . Intercept . | . . . Searches Triggered . | . . . Construction Impeded . | . . . Haulers Reinforced . | . . . Active Scanning Responses . | . . . Cargo Convoy Interrupts . | . . . Stealth | -11 -10 -10 --------- Run | Yrd Mat Min Distress Signals 3 | . 3 . Communications Jammed . | . . . Distress Signals . | . . . Times Spotted 37 | . 30 7 Peak Tracking Total 7 | . 7 5 Tactical Retreats 2 | . 2 . Traps | -11 -10 -10 ------- Run | Yrd Mat Min Traps Triggered 2 | . 2 . Indirectly . | . . . Trap Hack Attempts . | . . . Triggered . | . . . Disarmed . | . . . Reprogrammed . | . . . Reused . | . . . Traps Extracted . | . . . Installed . | . . . Triggered . | . . . Machines | -11 -10 -10 ---------- Run | Yrd Mat Min Machines Disabled 1 | . . 1 Max in Single Turn 1 | . . 1 Machines Repaired . | . . . Machines Dismantled . | . . . Machines Sabotaged . | . . . Overloaded Fab Kills . | . . . Hacking | -11 -10 -10 --------- Run | Yrd Mat Min Machines Accessed 6 | . 5 1 Terminals 5 | . 5 . Fabricators . | . . . Repair Stations . | . . . Recycling Units . | . . . Scanalyzers . | . . . Garrison Access . | . . . Total Hacks 12 | . 11 1 Successful 1 | . . 1 Failed 11 | . 11 . Catastrophic 2 | . 2 . Database Lockouts . | . . . Manual 11 | . 11 . Terminals 11 | . 11 . Fabricators . | . . . Repair Stations . | . . . Recycling Units . | . . . Scanalyzers . | . . . Garrison Access . | . . . Terminal Hacks 1 | . . 1 Open Door 1 | . . 1 Fabricator Hacks . | . . . Repair Station Hacks . | . . . Recycling Unit Hacks . | . . . Scanalyzer . | . . . Garrison Access Hacks . | . . . Unauthorized Hacks . | . . . Terminals . | . . . Fabricators . | . . . Repair Stations . | . . . Recycling Units . | . . . Scanalyzers . | . . . Garrison Access . | . . . Data Cores Recovered . | . . . Used . | . . . Hacking Detections 5 | . 5 . Full Trace Events 3 | . 3 . Feedback Events . | . . . Feedback Blocked . | . . . Robot Schematics Acquired . | . . . Robots Built . | . . . Authchips . | . . . Time . | . . . Total Robot Build Rating . | . . . Part Schematics Acquired . | . . . Parts Built . | . . . Authchips . | . . . Time . | . . . Total Part Build Rating . | . . . Parts Repaired . | . . . Time . | . . . Parts Recycled . | . . . Recycled Matter . | . . . Retrieved Matter . | . . . Retrieved Components . | . . . Parts Scanalyzed . | . . . Part Schematics Acquired . | . . . Parts Damaged . | . . . Bothacking | -11 -10 -10 ------------ Run | Yrd Mat Min Used RIF Installer . | . . . Robots Hacked . | . . . Non-combat . | . . . Combat . | . . . Robot Hacks Applied . | . . . Relay Couplers Released . | . . . Fabnet Peak Effective % . | . . . Robots Rewired . | . . . Allies Hacked . | . . . Hacks Repelled . | . . . Allies | -11 -10 -10 -------- Run | Yrd Mat Min Total Allies . | . . . Largest Group . | . . . Highest-Rated Group . | . . . Highest-Rated Ally . | . . . Total Orders . | . . . Ally Attacks . | . . . Total Damage . | . . . Kills . | . . . Allies Corrupted . | . . . Allies Melted . | . . . Intel | -11 -10 -10 ------- Run | Yrd Mat Min Robot Analysis Total . | . . . Derelict Logs Recovered . | . . . Drone Launches . | . . . Drone Recoveries . | . . . Exploration | -11 -10 -10 ------------- Run | Yrd Mat Min Turns Passed 1671 | 83 1196 392 Spaces Moved 603 | 45 416 142 Core 4 | 4 . . Treads 599 | 41 416 142 Legs . | . . . Wheels . | . . . Hover . | . . . Flight . | . . . Fastest Speed 50 | 50 160 240 Average Speed 230 | 152 235 240 Slowest Speed 320 | 160 320 240 Overloaded Moves . | . . . Propulsion Burnouts . | . . . Robots Hopped . | . . . Cave-ins Triggered . | . . . Exploration Rate (%) 34 | 4 69 31 Regions Visited 2 Branch Regions 1 Pre-discovered Areas . | . . . Known Exits Taken . | . . . Unknown Exits Taken 2 | 1 1 . Scrap Searched 1 | . . 1 Spaces Dug . | . . . Terrain Destroyed 36 | . 8 28 Melee . | . . . Projectile . | . . . AOE 36 | . 8 28 Terrain Rammed . | . . . Walls Destroyed . | . . . Machines Disabled . | . . . Actions | -11 -10 -10 --------- Run | Yrd Mat Min Total 743 | 57 510 176 Wait 21 | . 1 20 Move 601 | 44 415 142 Hop . | . . . Pick Up 24 | 7 16 1 Fast Attach 8 | 5 3 . Attach 3 | 1 2 . Detach 1 | . 1 . Swap 6 | . 3 3 Drop 2 | . 2 . Fire 77 | . 67 10 Melee . | . . . Ram . | . . . Kick . | . . . Crush . | . . . Escape Stasis . | . . . Rewire . | . . . Trap . | . . . Miscellaneous . | . . . Route ------- -11/Scrapyard -10/Materials (discovered 2 exits: [*Mat] / *Min) -10/Mines History --------- Turn | Location | Event 13 | -11/Scrapyard | Discovered new exit (range 15) 84 | -11/Scrapyard | Entered Materials 315 | -10/Materials | Build established: Mutant 436 | -10/Materials | Discovered new exit (range 13) 823 | -10/Materials | Core integrity fell below 50% 966 | -10/Materials | Discovered new exit (range 5) 1280 | -10/Materials | Entered Mines 1286 | -10/Mines | Found the Drone Emporium 1300 | -10/Mines | Found Prototype Device 1471 | -10/Mines | Core integrity fell below 20% 1628 | -10/Mines | Assembled infested the area 1651 | -10/Mines | Identified Thief Drone Bay 1672 | -10/Mines | Destroyed by as-66932 with Assembled Maul Last Messages --------------- 01344_ Found 63 Matter. 01345_ Acquired 2 matter. 01366_ VNJCBKNY3ODYFYRTEPT&U 8/ 01452_ System corrupted: Energy discharge (-60). 01472_ G-34 Mercenary destroyed. 01513_ Acquired 4 matter. 01544_ System corrupted: Matter fused (-8). 01628_ ALERT: Infestation in the mines, dispatching Demolisher response squad. 01649_ T-07 Excavator system corrupted by crushing effect. 01651_ Identified Thief Drone Bay. 01658_ Laser Drill disabled. 01658_ as-57550 destroyed. 01660_ Lgt. Treads destroyed. 01661_ as-64699 destroyed. 01664_ as-02997 destroyed. 01666_ as-13099 destroyed. 01672_ Ion Engine destroyed. 01672_ Destroyed Ion Engine. Map ----- +----------------------------------------------------+ | #??????????????##????????????????????????????? | | #????????????????????????????????????????????? | | #####????????????????????????????????????????????? | | #???????????????????????????????????????????????? | | #?????####??????????????????????????????????????? | | ##????# ###????????????????????????????????????? | | #??### ???????????????????????????????????? | | ?## ???????????????????????????????????? | | # ??????????????????????????????????? | | ???????????????????????????????????? | | ### ???????? ?????????????????????????? | | ##?????????????????# ?????????????????????????? | | ##??????????????????#*%?????????????????????????? | | #??????????????????# !?????????????????????????? | | ##### ???## ?????????????????????????? | | ??## #####??????? ????????????? | | ###### #????## #?????? =????????????? | | #????????????#??# a #????? ?????????????? | | #????????????# ## ####? #??????????????? | | ##???????????# % # ???????????????? | | #???????????? #????????????????? | | #???????????????# #????????????????? | | ##???????????????# #????????????????? | | ##?????????????##### #????????????????? | | ##?????????????# a #????????????????? | | ############### ## @ ##??????????????????? | | ### #???????????????????? | | ################?##########???????????????????? | | ##?????????????????????????????????????????????? | | ###??????????????????????????????????????????????? | | ?????????????????????????????????????????????????? | | | | | | | | | | | | | | | | | | | | | | | | | | | | | | | | | | | | | | | +----------------------------------------------------+ Best States ------------- Heat Dissipation 39 Energy Generation 10 Energy Capacity 250 Matter Stores 300 Matter Capacity 300 Sight Range 16 Terrain Scan Density 10 Armor Coverage 150 Evasion (%) 40 Recoil Reduction 2 Item Schematics ----------------- None Robot Schematics ------------------ None Fabricated ------------ Nothing Alien Tech Used ----------------- None Achievements -------------- None Challenges ------------ None Game ------ Seed GuidedMetafieldBrace Manual? 0 Play Time 00:07:44 Cumulative 139.0 hours Start 2024.12.14 @ 17:12:48 End 2024.12.14 @ 17:19:08 Sessions 1 Manual Loads 0 Difficulty Rogue Special Mode None Game No. 171 Rogue 171 Adventurer 0 Explorer 0 Win Type - Total 3 Types 3/0/0/0/0/0/0/0/0 Lore% 67 Gallery% 57 Achievement% 48 Wizard Run 0 Options --------- Layout 1 ASCII 0 Keyboard 1 Movement Numpad Keybinds 0 Fullscreen 1 Font 24/Smallcaps Map View 50x35 Zoom Use 0% Tactical HUD 1 Map Filters NONE Filters NONE Steam 1 RUN: 7d897036-02c3-436a-b02a-7a0bef71bf6f